[Event "*** SCC Grand Prix: Titled Tuesday Blitz"]
[Site "Chess.com"]
[Date "2020.09.29"]
[Round "2"]
[White "Guenplen"]
[Black "KingCrusher275"]
[Result "1-0"]
[WhiteElo "2875"]
[BlackElo "2546"]
[TimeControl "180+1"]
[EndTime "10:16:47 PDT"]
[Termination "Guenplen won by resignation"]

1. d4 {[%clk 0:03:00.9]} 1... d5 {[%clk 0:02:58.7]} 2. Bf4 {[%clk 0:02:59.4]}
2... Nf6 {[%clk 0:02:58.5]} 3. e3 {[%clk 0:02:59.3]} 3... c5 {[%clk 0:02:58.1]}
4. dxc5 {[%clk 0:02:59.5]} 4... Nc6 {[%clk 0:02:57]} 5. Bb5 {[%clk 0:02:58.9]}
5... e6 {[%clk 0:02:57.2]} 6. b4 {[%clk 0:02:58.8]} 6... a5 {[%clk 0:02:55.8]}
7. c3 {[%clk 0:02:58.8]} 7... Bd7 {[%clk 0:02:43.1]} 8. Nd2 {[%clk 0:02:56.9]}
8... axb4 {[%clk 0:02:38.9]} 9. Bxc6 {[%clk 0:02:56.4]} 9... Bxc6 {[%clk
0:02:35]} 10. cxb4 {[%clk 0:02:56.6]} 10... b6 {[%clk 0:02:33.7]} 11. cxb6
{[%clk 0:02:56.8]} 11... Bxb4 {[%clk 0:02:19]} 12. Bc7 {[%clk 0:02:56.3]} 12...
Qe7 {[%clk 0:02:09.9]} 13. Nf3 {[%clk 0:02:52.1]} 13... O-O {[%clk 0:01:35.3]}
14. O-O {[%clk 0:02:46.2]} 14... Ne8 {[%clk 0:01:26]} 15. Bg3 {[%clk 0:02:37]}
15... Ra6 {[%clk 0:01:21.8]} 16. a3 {[%clk 0:02:02.9]} 16... Bc5 {[%clk
0:00:58.2]} 17. Nb3 {[%clk 0:01:43.1]} 17... Bxb6 {[%clk 0:00:53]} 18. Nbd4
{[%clk 0:01:43.3]} 18... Bd7 {[%clk 0:00:24.4]} 19. Qd3 {[%clk 0:01:39.3]} 19...
Ra4 {[%clk 0:00:22.2]} 20. Rfb1 {[%clk 0:01:31.6]} 20... Bc5 {[%clk 0:00:21.6]}
21. Rb7 {[%clk 0:01:05.3]} 21... Nf6 {[%clk 0:00:21.7]} 22. Nc6 {[%clk 0:00:53]}
22... Qe8 {[%clk 0:00:20.7]} 23. Rb8 {[%clk 0:00:52.5]} 23... Bxc6 {[%clk
0:00:18.8]} 24. Rxe8 {[%clk 0:00:51.8]} 24... Rxe8 {[%clk 0:00:15.5]} 25. Qc2
{[%clk 0:00:40.2]} 25... Nd7 {[%clk 0:00:15.3]} 26. Ng5 {[%clk 0:00:36.9]} 26...
h6 {[%clk 0:00:14.8]} 27. Qh7+ {[%clk 0:00:27.8]} 27... Kf8 {[%clk 0:00:15.3]}
28. Nf3 {[%clk 0:00:24.8]} 28... Rxa3 {[%clk 0:00:08.5]} 29. Rxa3 {[%clk
0:00:21.6]} 29... Bxa3 {[%clk 0:00:09.4]} 30. Qh8+ {[%clk 0:00:21.6]} 30... Ke7
{[%clk 0:00:09.6]} 31. Qxg7 {[%clk 0:00:22.5]} 31... Kd8 {[%clk 0:00:09.3]} 32.
Qxf7 {[%clk 0:00:21.6]} 32... Be7 {[%clk 0:00:08.2]} 33. Qxe6 {[%clk 0:00:20.3]}
1-0

[Event "*** SCC Grand Prix: Titled Tuesday Blitz"]
[Site "Chess.com"]
[Date "2020.09.29"]
[Round "2"]
[White "ferdipy"]
[Black "PattyCastillo"]
[Result "1-0"]
[WhiteElo "2372"]
[BlackElo "1997"]
[TimeControl "180+1"]
[EndTime "10:16:47 PDT"]
[Termination "ferdipy won on time"]

1. e4 {[%clk 0:03:00.9]} 1... c5 {[%clk 0:02:55.4]} 2. d4 {[%clk 0:03:00.5]}
2... cxd4 {[%clk 0:02:55.2]} 3. c3 {[%clk 0:02:58.8]} 3... dxc3 {[%clk
0:02:55.8]} 4. Nxc3 {[%clk 0:02:57.8]} 4... Nc6 {[%clk 0:02:56.2]} 5. Bc4 {[%clk
0:02:57.3]} 5... e6 {[%clk 0:02:55.7]} 6. Nf3 {[%clk 0:02:57.9]} 6... Nge7
{[%clk 0:02:50.6]} 7. O-O {[%clk 0:02:58]} 7... Ng6 {[%clk 0:02:49.9]} 8. Be3
{[%clk 0:02:58.6]} 8... Bb4 {[%clk 0:02:47.3]} 9. Qe2 {[%clk 0:02:59.5]} 9... d6
{[%clk 0:02:45.4]} 10. Rfd1 {[%clk 0:02:59.6]} 10... Bxc3 {[%clk 0:02:40.8]} 11.
bxc3 {[%clk 0:02:58.7]} 11... Qc7 {[%clk 0:02:39.8]} 12. Rac1 {[%clk 0:02:57.3]}
12... O-O {[%clk 0:02:39.2]} 13. Bd3 {[%clk 0:02:53.9]} 13... Nge5 {[%clk
0:02:32.7]} 14. Bb1 {[%clk 0:02:49.8]} 14... Nxf3+ {[%clk 0:02:30.9]} 15. Qxf3
{[%clk 0:02:50.7]} 15... Ne5 {[%clk 0:02:31.1]} 16. Qg3 {[%clk 0:02:51.2]} 16...
Rd8 {[%clk 0:02:23.5]} 17. Bh6 {[%clk 0:02:47.8]} 17... f6 {[%clk 0:02:16.1]}
18. f4 {[%clk 0:02:46.2]} 18... Ng6 {[%clk 0:02:11]} 19. f5 {[%clk 0:02:43.2]}
19... exf5 {[%clk 0:02:07.6]} 20. exf5 {[%clk 0:02:42.2]} 20... Ne5 {[%clk
0:02:07.4]} 21. c4 {[%clk 0:02:39.3]} 21... b6 {[%clk 0:01:46]} 22. Be4 {[%clk
0:02:37.2]} 22... Rb8 {[%clk 0:01:45.2]} 23. Bf4 {[%clk 0:02:20.9]} 23... Bb7
{[%clk 0:01:41.6]} 24. Bd5+ {[%clk 0:02:21.4]} 24... Bxd5 {[%clk 0:01:41.2]} 25.
cxd5 {[%clk 0:02:22.3]} 25... Qf7 {[%clk 0:01:30.4]} 26. Qa3 {[%clk 0:02:17.6]}
26... Rbc8 {[%clk 0:01:27.2]} 27. Rxc8 {[%clk 0:02:16.3]} 27... Rxc8 {[%clk
0:01:27]} 28. Qxd6 {[%clk 0:02:16.9]} 28... Re8 {[%clk 0:01:08]} 29. h3 {[%clk
0:02:08.2]} 29... Qh5 {[%clk 0:01:01.9]} 30. Rc1 {[%clk 0:01:45.5]} 30... Qxf5
{[%clk 0:00:58.5]} 31. Bg3 {[%clk 0:01:43.1]} 31... Qg5 {[%clk 0:00:51.6]} 32.
Rc3 {[%clk 0:01:39]} 32... h5 {[%clk 0:00:40.2]} 33. Qb4 {[%clk 0:01:30.2]}
33... Nd7 {[%clk 0:00:25.6]} 34. d6 {[%clk 0:01:26.2]} 34... Nc5 {[%clk
0:00:21.9]} 35. Qc4+ {[%clk 0:01:15.8]} 35... Kh8 {[%clk 0:00:20.6]} 36. Kh2
{[%clk 0:01:10.3]} 36... Rd8 {[%clk 0:00:14]} 37. Qd4 {[%clk 0:01:00.9]} 37...
Qf5 {[%clk 0:00:07.6]} 38. Rf3 {[%clk 0:01:00.3]} 38... Qe6 {[%clk 0:00:06.6]}
39. Qh4 {[%clk 0:00:59.9]} 39... Qf7 {[%clk 0:00:05.5]} 40. Rf5 {[%clk
0:00:59.3]} 40... g6 {[%clk 0:00:04.1]} 41. Rxf6 {[%clk 0:00:59.5]} 41... Qg7
{[%clk 0:00:01.5]} 42. Be5 {[%clk 0:00:57]} 42... Kh7 {[%clk 0:00:01.7]} 43. Rf7
{[%clk 0:00:52.5]} 1-0

[Event "*** SCC Grand Prix: Titled Tuesday Blitz"]
[Site "Chess.com"]
[Date "2020.09.29"]
[Round "2"]
[White "checkmatequen"]
[Black "horripile"]
[Result "0-1"]
[WhiteElo "2297"]
[BlackElo "2648"]
[TimeControl "180+1"]
[EndTime "10:16:48 PDT"]
[Termination "horripile won by checkmate"]

1. e4 {[%clk 0:03:00.9]} 1... c5 {[%clk 0:02:59.5]} 2. Nf3 {[%clk 0:02:55.7]}
2... Nc6 {[%clk 0:02:59.3]} 3. d4 {[%clk 0:02:51.7]} 3... cxd4 {[%clk
0:03:00.2]} 4. Nxd4 {[%clk 0:02:49.7]} 4... e6 {[%clk 0:03:00.5]} 5. Nxc6 {[%clk
0:02:47.7]} 5... bxc6 {[%clk 0:02:59.1]} 6. Bd3 {[%clk 0:02:48.6]} 6... d5
{[%clk 0:02:58.5]} 7. O-O {[%clk 0:02:47.5]} 7... Nf6 {[%clk 0:02:58.6]} 8. Nd2
{[%clk 0:02:46.9]} 8... Be7 {[%clk 0:02:53.9]} 9. Qe2 {[%clk 0:02:44.5]} 9... a5
{[%clk 0:02:53.3]} 10. Re1 {[%clk 0:02:35]} 10... O-O {[%clk 0:02:51.9]} 11. e5
{[%clk 0:02:35.2]} 11... Nd7 {[%clk 0:02:51.3]} 12. c3 {[%clk 0:02:31.1]} 12...
Nc5 {[%clk 0:02:44.1]} 13. Bc2 {[%clk 0:02:30.7]} 13... Ba6 {[%clk 0:02:43.6]}
14. Qh5 {[%clk 0:02:30.8]} 14... Bd3 {[%clk 0:02:41]} 15. Bxd3 {[%clk
0:02:29.2]} 15... Nxd3 {[%clk 0:02:40.8]} 16. Re3 {[%clk 0:02:29.4]} 16... Nf4
{[%clk 0:02:25.9]} 17. Qg4 {[%clk 0:02:28.2]} 17... Ng6 {[%clk 0:02:25.9]} 18.
Nf3 {[%clk 0:02:23]} 18... Rb8 {[%clk 0:02:15.4]} 19. Rd3 {[%clk 0:02:01.1]}
19... Qc7 {[%clk 0:02:08.5]} 20. Qh5 {[%clk 0:01:35.9]} 20... f5 {[%clk
0:01:47.3]} 21. Ng5 {[%clk 0:01:17.3]} 21... Bxg5 {[%clk 0:01:45.8]} 22. Bxg5
{[%clk 0:01:18.2]} 22... Rf7 {[%clk 0:01:39.9]} 23. b3 {[%clk 0:01:08.2]} 23...
Qxe5 {[%clk 0:01:31.4]} 24. Re3 {[%clk 0:01:06.5]} 24... Qd6 {[%clk 0:01:29.7]}
25. Rh3 {[%clk 0:00:51.7]} 25... Nf8 {[%clk 0:01:28.8]} 26. f4 {[%clk
0:00:51.2]} 26... e5 {[%clk 0:01:07.1]} 27. fxe5 {[%clk 0:00:36.7]} 27... Qxe5
{[%clk 0:01:06.8]} 28. Qh4 {[%clk 0:00:36.9]} 28... Re8 {[%clk 0:01:04.4]} 29.
Bd2 {[%clk 0:00:27.2]} 29... f4 {[%clk 0:00:57.8]} 30. Re1 {[%clk 0:00:23]}
30... Qb8 {[%clk 0:00:52.8]} 31. Rxe8 {[%clk 0:00:21.7]} 31... Qxe8 {[%clk
0:00:52.6]} 32. Bxf4 {[%clk 0:00:21.5]} 32... Qe4 {[%clk 0:00:39.9]} 33. Rf3
{[%clk 0:00:11.6]} 33... Ng6 {[%clk 0:00:37.1]} 34. Qd8+ {[%clk 0:00:11.2]}
34... Rf8 {[%clk 0:00:37.1]} 35. Qd6 {[%clk 0:00:09.7]} 35... Nxf4 {[%clk
0:00:36.8]} 36. Rf1 {[%clk 0:00:04.7]} 36... Qxg2# {[%clk 0:00:36.6]} 0-1

[Event "*** SCC Grand Prix: Titled Tuesday Blitz"]
[Site "Chess.com"]
[Date "2020.09.29"]
[Round "2"]
[White "QuintilianoR"]
[Black "Belka1989"]
[Result "0-1"]
[WhiteElo "2621"]
[BlackElo "2268"]
[TimeControl "180+1"]
[EndTime "10:16:49 PDT"]
[Termination "Belka1989 won by resignation"]

1. d4 {[%clk 0:03:00.9]} 1... Nf6 {[%clk 0:02:56.6]} 2. c4 {[%clk 0:03:00.5]}
2... e5 {[%clk 0:02:56.8]} 3. dxe5 {[%clk 0:02:59.7]} 3... Ng4 {[%clk
0:02:57.3]} 4. Nf3 {[%clk 0:02:57.8]} 4... Bc5 {[%clk 0:02:57.1]} 5. e3 {[%clk
0:02:57.5]} 5... Nc6 {[%clk 0:02:57.4]} 6. Nc3 {[%clk 0:02:57]} 6... O-O {[%clk
0:02:57.8]} 7. Be2 {[%clk 0:02:56.8]} 7... Re8 {[%clk 0:02:58.1]} 8. O-O {[%clk
0:02:54.7]} 8... Ngxe5 {[%clk 0:02:58.5]} 9. b3 {[%clk 0:02:51.7]} 9... Nxf3+
{[%clk 0:02:58.1]} 10. Bxf3 {[%clk 0:02:50.8]} 10... Ne5 {[%clk 0:02:58.6]} 11.
Be2 {[%clk 0:02:49.4]} 11... a5 {[%clk 0:02:58.9]} 12. Bb2 {[%clk 0:02:43.6]}
12... Ra6 {[%clk 0:02:57.8]} 13. Na4 {[%clk 0:02:39.5]} 13... Ba7 {[%clk
0:02:56.8]} 14. Qd5 {[%clk 0:02:23.9]} 14... Rae6 {[%clk 0:02:50.8]} 15. Qxa5
{[%clk 0:02:18.8]} 15... Nc6 {[%clk 0:02:25.3]} 16. Qd5 {[%clk 0:02:05.4]} 16...
Rh6 {[%clk 0:02:13]} 17. g3 {[%clk 0:01:04.6]} 17... d6 {[%clk 0:02:04.1]} 18.
Bf3 {[%clk 0:01:01.2]} 18... Ne5 {[%clk 0:01:40.7]} 19. Bxe5 {[%clk 0:00:50.7]}
19... Rxe5 {[%clk 0:01:40.2]} 20. Qd2 {[%clk 0:00:50.3]} 20... Qg5 {[%clk
0:01:19.2]} 21. Rfe1 {[%clk 0:00:44.8]} 21... Bg4 {[%clk 0:01:06.8]} 22. Bxb7
{[%clk 0:00:14.3]} 22... Qh5 {[%clk 0:00:47.2]} 23. h4 {[%clk 0:00:13.8]} 23...
g5 {[%clk 0:00:47.6]} 24. c5 {[%clk 0:00:09.2]} 24... gxh4 {[%clk 0:00:47.1]}
25. f4 {[%clk 0:00:07.6]} 25... Re8 {[%clk 0:00:26.7]} 26. b4 {[%clk 0:00:07.5]}
26... hxg3 {[%clk 0:00:26]} 27. Qg2 {[%clk 0:00:07.1]} 27... Bh3 {[%clk
0:00:20.5]} 28. Qf3 {[%clk 0:00:06.1]} 28... Qh4 {[%clk 0:00:17]} 29. Qg2 {[%clk
0:00:06.6]} 29... Bxg2 {[%clk 0:00:16.8]} 0-1

[Event "*** SCC Grand Prix: Titled Tuesday Blitz"]
[Site "Chess.com"]
[Date "2020.09.29"]
[Round "2"]
[White "ChessWarrior3"]
[Black "Xeniya2005"]
[Result "1-0"]
[WhiteElo "2155"]
[BlackElo "2388"]
[TimeControl "180+1"]
[EndTime "10:16:49 PDT"]
[Termination "ChessWarrior3 won on time"]

1. e4 {[%clk 0:01:54.6]} 1... e6 {[%clk 0:02:58.2]} 2. d4 {[%clk 0:01:53.4]}
2... d5 {[%clk 0:02:58.3]} 3. Nc3 {[%clk 0:01:52.5]} 3... Bb4 {[%clk 0:02:56.6]}
4. e5 {[%clk 0:01:51.6]} 4... c5 {[%clk 0:02:56.4]} 5. a3 {[%clk 0:01:49.4]}
5... Bxc3+ {[%clk 0:02:56.5]} 6. bxc3 {[%clk 0:01:50.3]} 6... Ne7 {[%clk
0:02:56.7]} 7. Qg4 {[%clk 0:01:48.2]} 7... O-O {[%clk 0:02:55.9]} 8. h3 {[%clk
0:01:43]} 8... Nbc6 {[%clk 0:02:53.8]} 9. Bd3 {[%clk 0:01:31.5]} 9... f5 {[%clk
0:02:33.8]} 10. exf6 {[%clk 0:01:28.5]} 10... Rxf6 {[%clk 0:02:31.9]} 11. Qh5
{[%clk 0:01:26.2]} 11... g6 {[%clk 0:02:23.3]} 12. Qh4 {[%clk 0:01:23.1]} 12...
Rf7 {[%clk 0:02:22.4]} 13. Nf3 {[%clk 0:01:23.2]} 13... Qc7 {[%clk 0:02:08.8]}
14. Ng5 {[%clk 0:01:20.2]} 14... Nf5 {[%clk 0:01:58.4]} 15. Bxf5 {[%clk
0:01:14.7]} 15... Rxf5 {[%clk 0:01:56.5]} 16. O-O {[%clk 0:01:13.8]} 16... Qe7
{[%clk 0:01:27.7]} 17. dxc5 {[%clk 0:01:09.8]} 17... Bd7 {[%clk 0:01:25.3]} 18.
Rb1 {[%clk 0:01:05.8]} 18... Rb8 {[%clk 0:01:05.9]} 19. g4 {[%clk 0:00:56.4]}
19... Rff8 {[%clk 0:00:21.8]} 20. f4 {[%clk 0:00:48]} 20... e5 {[%clk
0:00:20.1]} 21. Re1 {[%clk 0:00:45.2]} 21... e4 {[%clk 0:00:19.1]} 22. Be3
{[%clk 0:00:39.7]} 22... Na5 {[%clk 0:00:09.2]} 23. Bd4 {[%clk 0:00:36.6]} 23...
Rbe8 {[%clk 0:00:08.4]} 24. Be5 {[%clk 0:00:32.3]} 24... Nc4 {[%clk 0:00:03.7]}
25. Rxb7 {[%clk 0:00:29.6]} 25... Nxe5 {[%clk 0:00:03.4]} 26. fxe5 {[%clk
0:00:27.5]} 26... Rd8 {[%clk 0:00:02.1]} 27. c6 {[%clk 0:00:25.5]} 27... Qc5+
{[%clk 0:00:01.8]} 28. Kh1 {[%clk 0:00:25.4]} 28... Qe7 {[%clk 0:00:01.2]} 29.
cxd7 {[%clk 0:00:25.3]} 1-0

[Event "*** SCC Grand Prix: Titled Tuesday Blitz"]
[Site "Chess.com"]
[Date "2020.09.29"]
[Round "2"]
[White "SilviusTiberius"]
[Black "JuliaEfremova"]
[Result "0-1"]
[WhiteElo "2638"]
[BlackElo "2352"]
[TimeControl "180+1"]
[EndTime "10:16:51 PDT"]
[Termination "JuliaEfremova won by resignation"]

1. e4 {[%clk 0:03:00.9]} 1... d5 {[%clk 0:02:57.4]} 2. exd5 {[%clk 0:03:00.7]}
2... Qxd5 {[%clk 0:02:58.3]} 3. Nf3 {[%clk 0:03:01.2]} 3... Nf6 {[%clk
0:02:57.9]} 4. d4 {[%clk 0:02:59.4]} 4... Bg4 {[%clk 0:02:56.7]} 5. Be2 {[%clk
0:02:59.5]} 5... e6 {[%clk 0:02:55.6]} 6. h3 {[%clk 0:02:59.6]} 6... Bh5 {[%clk
0:02:54.9]} 7. O-O {[%clk 0:03:00.1]} 7... Be7 {[%clk 0:02:54.6]} 8. c4 {[%clk
0:03:00.6]} 8... Qd8 {[%clk 0:02:53.5]} 9. Nc3 {[%clk 0:03:01.2]} 9... c6 {[%clk
0:02:53.2]} 10. Qb3 {[%clk 0:03:01.5]} 10... Qb6 {[%clk 0:02:46.3]} 11. Be3
{[%clk 0:02:54.6]} 11... Nbd7 {[%clk 0:02:41.2]} 12. Qc2 {[%clk 0:02:43.9]}
12... Qc7 {[%clk 0:02:32.2]} 13. Rac1 {[%clk 0:02:39.3]} 13... O-O {[%clk
0:02:30.3]} 14. Rfd1 {[%clk 0:02:38.7]} 14... Rfe8 {[%clk 0:02:26.5]} 15. Qd2
{[%clk 0:02:37.4]} 15... Qa5 {[%clk 0:02:20.2]} 16. Nd5 {[%clk 0:02:31.5]} 16...
Qxd2 {[%clk 0:02:18]} 17. Nxe7+ {[%clk 0:02:31.7]} 17... Rxe7 {[%clk 0:02:18.9]}
18. Rxd2 {[%clk 0:02:31.8]} 18... Ne4 {[%clk 0:02:17]} 19. Rd3 {[%clk
0:02:30.8]} 19... Ndf6 {[%clk 0:02:03.2]} 20. g4 {[%clk 0:02:27.1]} 20... Bg6
{[%clk 0:02:02.6]} 21. Ne5 {[%clk 0:02:24.3]} 21... Rd8 {[%clk 0:01:56.8]} 22.
Nxg6 {[%clk 0:02:22.3]} 22... hxg6 {[%clk 0:01:56.3]} 23. Bf3 {[%clk 0:02:20.1]}
23... Nd6 {[%clk 0:01:48.1]} 24. Bf4 {[%clk 0:02:14]} 24... Red7 {[%clk
0:01:45.2]} 25. b3 {[%clk 0:02:13.3]} 25... Nde8 {[%clk 0:01:25]} 26. Rcd1
{[%clk 0:02:13.2]} 26... Nh7 {[%clk 0:01:22.7]} 27. g5 {[%clk 0:02:09.7]} 27...
e5 {[%clk 0:01:18.4]} 28. Bxe5 {[%clk 0:02:06]} 28... Nxg5 {[%clk 0:01:17.6]}
29. Bg2 {[%clk 0:02:06.5]} 29... f6 {[%clk 0:01:07.7]} 30. Bg3 {[%clk
0:02:04.7]} 30... Nf7 {[%clk 0:00:56.3]} 31. h4 {[%clk 0:02:02.3]} 31... Ned6
{[%clk 0:00:48.7]} 32. Bh3 {[%clk 0:01:53.2]} 32... Nf5 {[%clk 0:00:47]} 33. h5
{[%clk 0:01:53.3]} 33... Ng5 {[%clk 0:00:41.3]} 34. Bg4 {[%clk 0:01:48.1]} 34...
Rxd4 {[%clk 0:00:37]} 35. Bxf5 {[%clk 0:01:46.7]} 35... gxf5 {[%clk 0:00:36.1]}
36. Rxd4 {[%clk 0:01:41.8]} 36... Rxd4 {[%clk 0:00:34.9]} 37. Ra1 {[%clk
0:01:32.1]} 37... f4 {[%clk 0:00:33.7]} 38. Bh2 {[%clk 0:01:32.5]} 38... f3
{[%clk 0:00:21.4]} 39. Bg3 {[%clk 0:01:31.4]} 39... f5 {[%clk 0:00:20.1]} 40.
Kh2 {[%clk 0:01:25.1]} 40... Ne4 {[%clk 0:00:19.8]} 41. Bh4 {[%clk 0:01:24.6]}
41... Rd2 {[%clk 0:00:19.3]} 42. Kg1 {[%clk 0:01:16.8]} 42... Kh7 {[%clk
0:00:19.7]} 43. Re1 {[%clk 0:01:16.1]} 43... Kh6 {[%clk 0:00:19.4]} 44. Re3
{[%clk 0:01:16.5]} 44... Kxh5 {[%clk 0:00:17.9]} 45. Bg3 {[%clk 0:01:15.8]}
45... Kg4 {[%clk 0:00:17.5]} 46. Kf1 {[%clk 0:01:09.5]} 46... Rd1+ {[%clk
0:00:16.6]} 47. Re1 {[%clk 0:01:09.2]} 47... Rxe1+ {[%clk 0:00:16.9]} 48. Kxe1
{[%clk 0:01:10.1]} 48... Nxg3 {[%clk 0:00:17.3]} 49. fxg3 {[%clk 0:01:11]} 49...
Kxg3 {[%clk 0:00:17.5]} 50. Kf1 {[%clk 0:01:11.9]} 50... f4 {[%clk 0:00:17.4]}
51. b4 {[%clk 0:01:12.8]} 51... f2 {[%clk 0:00:17.4]} 52. b5 {[%clk 0:01:12.5]}
52... g5 {[%clk 0:00:17.6]} 53. c5 {[%clk 0:01:13.4]} 53... cxb5 {[%clk
0:00:17.2]} 54. a4 {[%clk 0:01:14.3]} 54... bxa4 {[%clk 0:00:17.6]} 55. c6
{[%clk 0:01:14.2]} 55... bxc6 {[%clk 0:00:18]} 56. Ke2 {[%clk 0:01:15.1]} 56...
Kg2 {[%clk 0:00:18.3]} 57. Kd3 {[%clk 0:01:15.1]} 57... f1=Q+ {[%clk 0:00:18.6]}
58. Ke4 {[%clk 0:01:16]} 58... f3 {[%clk 0:00:18.1]} 59. Kf5 {[%clk 0:01:16.9]}
59... f2 {[%clk 0:00:18.6]} 60. Kg6 {[%clk 0:01:17.8]} 60... Qe2 {[%clk
0:00:18.8]} 0-1

[Event "*** SCC Grand Prix: Titled Tuesday Blitz"]
[Site "Chess.com"]
[Date "2020.09.29"]
[Round "2"]
[White "kosya4ok"]
[Black "PSvidler"]
[Result "0-1"]
[WhiteElo "2584"]
[BlackElo "2947"]
[TimeControl "180+1"]
[EndTime "10:16:54 PDT"]
[Termination "PSvidler won by resignation"]

1. e4 {[%clk 0:03:00.3]} 1... c5 {[%clk 0:02:59]} 2. Nf3 {[%clk 0:03:00.2]} 2...
d6 {[%clk 0:02:56.1]} 3. d4 {[%clk 0:03:00.1]} 3... cxd4 {[%clk 0:02:56]} 4.
Nxd4 {[%clk 0:03:01]} 4... Nf6 {[%clk 0:02:56.7]} 5. Nc3 {[%clk 0:02:57.1]} 5...
a6 {[%clk 0:02:56.6]} 6. h3 {[%clk 0:02:51.5]} 6... e5 {[%clk 0:02:52.6]} 7. Nf3
{[%clk 0:02:47.8]} 7... Qc7 {[%clk 0:02:40.8]} 8. a4 {[%clk 0:02:34.3]} 8... h6
{[%clk 0:02:38.3]} 9. Bd3 {[%clk 0:02:28.6]} 9... Be6 {[%clk 0:02:37.7]} 10. O-O
{[%clk 0:02:28.3]} 10... Nbd7 {[%clk 0:02:37.5]} 11. Re1 {[%clk 0:02:18.6]}
11... Be7 {[%clk 0:02:37]} 12. Bd2 {[%clk 0:02:13.6]} 12... O-O {[%clk
0:02:36.6]} 13. a5 {[%clk 0:02:11]} 13... Nc5 {[%clk 0:02:31.1]} 14. Bf1 {[%clk
0:02:06.8]} 14... Qc6 {[%clk 0:02:27.2]} 15. Qe2 {[%clk 0:02:06.1]} 15... Rac8
{[%clk 0:02:23.8]} 16. b4 {[%clk 0:01:01.7]} 16... Ncd7 {[%clk 0:02:23.8]} 17.
Qe3 {[%clk 0:00:54.2]} 17... Bc4 {[%clk 0:02:19.8]} 18. Bd3 {[%clk 0:00:52.7]}
18... Rfe8 {[%clk 0:02:15.7]} 19. Nh4 {[%clk 0:00:48.2]} 19... d5 {[%clk
0:01:32]} 20. exd5 {[%clk 0:00:30.6]} 20... Nxd5 {[%clk 0:01:31.7]} 21. Nxd5
{[%clk 0:00:29.1]} 21... Qxd5 {[%clk 0:01:05.9]} 22. Be4 {[%clk 0:00:26.8]}
22... Qb5 {[%clk 0:01:05.7]} 23. Nf5 {[%clk 0:00:26.4]} 23... Bf8 {[%clk
0:01:05.7]} 24. Qg3 {[%clk 0:00:26.1]} 24... Kh8 {[%clk 0:01:05.3]} 25. c3
{[%clk 0:00:22.2]} 25... Nf6 {[%clk 0:01:04.3]} 26. Bc2 {[%clk 0:00:21]} 26...
Rcd8 {[%clk 0:01:01.9]} 27. Ba4 {[%clk 0:00:20.6]} 27... Qd5 {[%clk 0:00:58.4]}
28. Bxe8 {[%clk 0:00:20.3]} 28... Qxd2 {[%clk 0:00:52.9]} 29. Ba4 {[%clk
0:00:19]} 29... Bd3 {[%clk 0:00:42.2]} 30. Rad1 {[%clk 0:00:17.2]} 30... Qxc3
{[%clk 0:00:42.3]} 31. Qxe5 {[%clk 0:00:15.8]} 31... Qxb4 {[%clk 0:00:40.5]} 32.
Bc2 {[%clk 0:00:15]} 32... Rd5 {[%clk 0:00:38.6]} 33. Qc7 {[%clk 0:00:07.9]}
33... Bxf5 {[%clk 0:00:34.3]} 34. Rxd5 {[%clk 0:00:07]} 34... Qxe1+ {[%clk
0:00:33]} 35. Kh2 {[%clk 0:00:07.3]} 35... Nxd5 {[%clk 0:00:33.5]} 36. Qd8
{[%clk 0:00:06.8]} 36... Qe5+ {[%clk 0:00:32.3]} 0-1

[Event "*** SCC Grand Prix: Titled Tuesday Blitz"]
[Site "Chess.com"]
[Date "2020.09.29"]
[Round "2"]
[White "exoticprincess"]
[Black "Anna_ChessMate"]
[Result "1-0"]
[WhiteElo "2899"]
[BlackElo "2567"]
[TimeControl "180+1"]
[EndTime "10:16:54 PDT"]
[Termination "exoticprincess won by resignation"]

1. b3 {[%clk 0:03:00.9]} 1... e5 {[%clk 0:02:52.8]} 2. Bb2 {[%clk 0:03:01.1]}
2... Nc6 {[%clk 0:02:53.4]} 3. Nf3 {[%clk 0:02:59.7]} 3... Bd6 {[%clk
0:02:53.7]} 4. e3 {[%clk 0:02:59.1]} 4... Nf6 {[%clk 0:02:53.8]} 5. d3 {[%clk
0:02:57.1]} 5... O-O {[%clk 0:02:53.6]} 6. Nbd2 {[%clk 0:02:57.4]} 6... Re8
{[%clk 0:02:54.1]} 7. Be2 {[%clk 0:02:57.6]} 7... Qe7 {[%clk 0:02:54.1]} 8. O-O
{[%clk 0:02:56.7]} 8... Ba3 {[%clk 0:02:52.6]} 9. Bxa3 {[%clk 0:02:54.9]} 9...
Qxa3 {[%clk 0:02:53.5]} 10. c4 {[%clk 0:02:55.5]} 10... d5 {[%clk 0:02:50.7]}
11. cxd5 {[%clk 0:02:55.2]} 11... Nxd5 {[%clk 0:02:51.6]} 12. Qc1 {[%clk
0:02:55.8]} 12... Qe7 {[%clk 0:02:50.3]} 13. Qb2 {[%clk 0:02:55.5]} 13... Bg4
{[%clk 0:02:45.1]} 14. Rac1 {[%clk 0:02:54.7]} 14... Rad8 {[%clk 0:02:44.3]} 15.
Rfe1 {[%clk 0:02:54.8]} 15... Ndb4 {[%clk 0:02:37.8]} 16. Rc3 {[%clk 0:02:45.8]}
16... Nd5 {[%clk 0:02:02.6]} 17. Rc4 {[%clk 0:02:45.7]} 17... Bh5 {[%clk
0:01:56.8]} 18. a3 {[%clk 0:02:42.8]} 18... Bg6 {[%clk 0:01:55.8]} 19. Rcc1
{[%clk 0:02:38.9]} 19... Nf6 {[%clk 0:01:52.4]} 20. e4 {[%clk 0:02:33.1]} 20...
Nd7 {[%clk 0:01:33.6]} 21. b4 {[%clk 0:02:28.1]} 21... a6 {[%clk 0:01:34.1]} 22.
h3 {[%clk 0:02:26.5]} 22... Nb6 {[%clk 0:01:33.2]} 23. Nb3 {[%clk 0:02:25.4]}
23... Nd7 {[%clk 0:01:22.8]} 24. Rc2 {[%clk 0:02:17]} 24... f6 {[%clk
0:01:19.7]} 25. Rec1 {[%clk 0:02:15.8]} 25... Bf7 {[%clk 0:01:20.1]} 26. Na5
{[%clk 0:02:09.6]} 26... Nxa5 {[%clk 0:01:09.4]} 27. bxa5 {[%clk 0:02:10.5]}
27... c5 {[%clk 0:01:05.1]} 28. Qxb7 {[%clk 0:02:06.6]} 28... Qd6 {[%clk
0:01:05.4]} 29. Qb1 {[%clk 0:01:49.5]} 29... Qc7 {[%clk 0:00:55.2]} 30. Rc3
{[%clk 0:01:29.2]} 30... Qxa5 {[%clk 0:00:53.5]} 31. Qc2 {[%clk 0:01:29.4]}
31... Rb8 {[%clk 0:00:47.5]} 32. Nd2 {[%clk 0:01:28]} 32... Qd8 {[%clk
0:00:31.5]} 33. Bg4 {[%clk 0:01:27.2]} 33... Be6 {[%clk 0:00:29.9]} 34. Nc4
{[%clk 0:01:27]} 34... Bxg4 {[%clk 0:00:28.1]} 35. hxg4 {[%clk 0:01:26.8]} 35...
Re6 {[%clk 0:00:28]} 36. Ne3 {[%clk 0:01:26.6]} 36... Reb6 {[%clk 0:00:26.8]}
37. Nc4 {[%clk 0:01:23.5]} 37... R6b7 {[%clk 0:00:23.9]} 38. Qa2 {[%clk
0:01:21.4]} 38... Kf8 {[%clk 0:00:10.8]} 39. Nd6 {[%clk 0:01:20.2]} 39... Qe7
{[%clk 0:00:11.5]} 40. Nxb7 {[%clk 0:01:19.4]} 40... Rxb7 {[%clk 0:00:12.4]} 41.
Rb1 {[%clk 0:01:18.8]} 41... Rb5 {[%clk 0:00:11.8]} 42. a4 {[%clk 0:01:18.4]}
42... Rxb1+ {[%clk 0:00:09.2]} 43. Qxb1 {[%clk 0:01:19.3]} 43... Qd6 {[%clk
0:00:08.1]} 44. Qb7 {[%clk 0:01:17.6]} 44... Qd4 {[%clk 0:00:08.3]} 45. Rb3
{[%clk 0:01:13.8]} 45... c4 {[%clk 0:00:08]} 46. dxc4 {[%clk 0:01:10.8]} 46...
Ke7 {[%clk 0:00:04.9]} 47. Qd5 {[%clk 0:01:05.1]} 1-0